Cogmind - Beta 10.2 @@@ ROGUE MODE // 2021.05.06 @ 14:09:47 Player: Teratos Result: Self-destructed Performance ------------- Evolutions (2) 1000 Regions Visited (5) 1000 Robots Destroyed (17) 85 Value Destroyed (480) 480 Prototype IDs (3) 60 Alien Tech Used (0) 0 Bonus (300) 300 TOTAL SCORE: 2925 Bonus ------- Aligned with FarCom 300 Cogmind --------- Core Integrity 264/550 Matter 290/300 Energy 492/500 System Corruption 0% Temperature Cool (0) Movement Treading (152) Location -8/Materials Parts ------- > --- POWER (1) -------- (None) > --- PROPULSION (2) --- Light Treads Advanced Treads > --- UTILITY (6) ------ High-capacity Battery Long-range Sensor Array Transmission Jammer > --- WEAPON (2) ------- (None) > --- INVENTORY (4) ---- (None) Peak State ------------ > --- POWER ------------ Improved Ion Engine > --- PROPULSION ------- Light Treads Advanced Treads > --- UTILITY ---------- Improved Heat Sink High-capacity Battery Long-range Sensor Array Transmission Jammer System Shield > --- WEAPON ----------- YOLO Cannon > --- INVENTORY -------- (None) [Rating: 40] Favorites ----------- Power Light Nuclear Core Engine Light Ion Engine Power Core Light Nuclear Core Propulsion Light Treads Treads Light Treads Utility Improved Heat Sink Device Improved Heat Sink Storage High-capacity Battery Hackware System Shield Weapon Assault Rifle Energy Gun AWS/Thermal Energy Cannon YOLO Cannon Ballistic Gun Assault Rifle Build | -11 -10 -10 -10 -9 -8 ------- Run | Scr Mat Min Exi Min Mat Slots Evolved 4 | . . . . . 4 Power . | . . . . . . Propulsion . | . . . . . . Utility 4 | . . . . . 4 Weapon . | . . . . . . Parts Attached 18 | 5 1 1 5 . 6 Power 3 | 1 . 1 . . 1 Engine 2 | 1 . . . . 1 Core 1 | . . 1 . . . Reactor . | . . . . . . Propulsion 4 | 2 . . . . 2 Treads 4 | 2 . . . . 2 Leg . | . . . . . . Wheel . | . . . . . . Hover . | . . . . . . Flight . | . . . . . . Utility 7 | . 1 . 3 . 3 Device 4 | . 1 . 1 . 2 Storage 2 | . . . 2 . . Processor . | . . . . . . Hackware 1 | . . . . . 1 Protection . | . . . . . . Artifact . | . . . . . . Weapon 4 | 2 . . 2 . . Energy Gun 1 | . . . 1 . . Energy Cannon 1 | . . . 1 . . Ballistic Gun 2 | 2 . . . . . Ballistic Cannon . | . . . . . . Launcher . | . . . . . . Special Weapon . | . . . . . . Impact Weapon . | . . . . . . Slashing Weapon . | . . . . . . Piercing Weapon . | . . . . . . Special Melee Weapon . | . . . . . . Unidentified Prototypes 3 | . . . 3 . . Parts Lost 5 | . . . . 1 4 Power 1 | . . . . . 1 Propulsion 1 | . . . . 1 . Utility 2 | . . . . . 2 Weapon 1 | . . . . . 1 Highest Loss Streak 4 | . . . . 1 4 Average Slot Usage (%) 77 | . 73 85 80 77 59 Engine 2 | . 14 6 . . 3 Core 10 | . . 7 14 14 5 Treads 25 | . 28 28 28 20 15 Device 12 | . 2 14 12 14 11 Storage 3 | . . . . 14 9 Energy Cannon 4 | . . . 4 14 9 Ballistic Gun 16 | . 28 28 19 . . Naked Turns . | . . . . . . Heaviest Build 31 | 6 7 9 28 28 31 Greatest Support 42 | 40 40 40 40 40 42 Greatest Overweight (x) 1 | . . . . 1 1 Average Overweight (x) . | . . . . . . Largest Inventory Capacity 24 | 4 4 4 24 4 4 Average Capacity 4 | 4 4 4 4 4 4 Most Carried 1 | . . . . . 1 Average Carried . | . . . . . . Final Capacity 4 | 4 4 4 4 4 4 Final Carried . | . . . . . . Class Distribution -------------------- 100% | Mutant Dominant Class ---------------- Mutant | -10/Materials Mutant | -10/Mines Mutant | -10/Exiles Mutant | -9/Mines Mutant | -8/Materials Resources | -11 -10 -10 -10 -9 -8 ----------- Run | Scr Mat Min Exi Min Mat Matter Collected 458 | 214 76 68 . 50 50 Remotely . | . . . . . . Salvage Created 516 | . 109 81 . 94 232 Parts 34 | . 5 6 . 3 20 Haulers Intercepted . | . . . . . . Recyclers Shooed 1 | . . . . . 1 Parts Field Recycled . | . . . . . . Retrieved Matter . | . . . . . . Parts Self-Destructed . | . . . . . . Prevented . | . . . . . . Kills | -11 -10 -10 -10 -9 -8 ------- Run | Scr Mat Min Exi Min Mat Combat Hostiles Destroyed 17 | . 2 2 . 9 4 Guns 4 | . 2 2 . . . Cannons 3 | . . . . 2 1 AOE 10 | . . . . 7 3 Classes Destroyed 8 | . 2 . . 2 4 Worker 4 | . 1 . . 1 2 Builder 1 | . . . . . 1 Tunneler 1 | . . . . 1 . Recycler 1 | . . . . . 1 Watcher 1 | . . . . . 1 Grunt 7 | . 2 2 . 1 2 Sentry 2 | . . . . . 2 Assembled 8 | . . . . 8 . Best Kill Streak 5 | . 2 1 . 5 4 Combat Bots Only 5 | . 2 1 . 5 2 Max Kills in Single Turn 4 | . 1 1 . 4 2 Gunslinging . | . . . . . . Exploded 3 | . . . . 3 1 Melee . | . . . . . . Uniques/NPCs Destroyed . | . . . . . . Combat | -11 -10 -10 -10 -9 -8 -------- Run | Scr Mat Min Exi Min Mat Damage Taken 699 | . 143 164 . 254 138 Core 114 | . 38 12 . 43 21 Absorbed by Shields . | . . . . . . Core Remaining (%) 81 | 100 . . . 62 . Volleys Fired 42 | . 10 12 . 10 10 Largest 2 | . 2 2 . 1 1 Hottest 100 | . 40 40 . 100 100 Shots Fired 63 | . 20 24 . 10 9 Gun 44 | . 20 24 . . . Cannon 19 | . . . . 10 9 Launcher . | . . . . . . Special . | . . . . . . Kinetic 44 | . 20 24 . . . Thermal 19 | . . . . 10 9 Explosive . | . . . . . . Electromagnetic . | . . . . . . Robot Hit Streak 15 | . 6 15 . 3 5 Robot Miss Streak 4 | . 1 4 . 1 1 Penetration Max . | . . . . . . Secondary Targets 2 | . 1 1 . . . Max Gunslinging Chain 1 | . 1 1 . . . Shots Hit Robots 41 | . 14 17 . 5 5 Core Hits 30 | . 8 5 . 9 8 Critical Hits 3 | . . . . 2 1 Critical Kills 2 | . . . . 1 1 Critical Parts Destroyed 1 | . . . . 1 . Melee Attacks . | . . . . . . Impact . | . . . . . . Slashing . | . . . . . . Piercing . | . . . . . . Sneak Attacks . | . . . . . . Combat Hostiles . | . . . . . . Follow-up Attacks . | . . . . . . Damage Inflicted 3049 | . 155 160 . 1410 1324 Guns 315 | . 155 160 . . . Cannons 1065 | . . . . 524 541 Explosions 1669 | . . . . 886 783 Melee . | . . . . . . Ramming . | . . . . . . Kinetic 315 | . 155 160 . . . Thermal 2734 | . . . . 1410 1324 Explosive . | . . . . . . Electromagnetic . | . . . . . . Impact . | . . . . . . Slashing . | . . . . . . Piercing . | . . . . . . Highest Corruption . | . . . . . . Average Corruption . | . . . . . . Corruption Purged . | . . . . . . Overload Shots . | . . . . . . Overflow Damage 529 | . . . . 267 262 Projectiles 196 | . . . . 82 114 Explosions 333 | . . . . 185 148 Melee . | . . . . . . Knockbacks . | . . . . . . Impact . | . . . . . . Kinetic . | . . . . . . Secondary . | . . . . . . Self-Inflicted Damage 304 | . . . . 208 96 Shots 4 | . . . . 3 1 Rammed . | . . . . . . Targets Rammed . | . . . . . . Kicked . | . . . . . . Crushed . | . . . . . . Highest Temperature 21 | . 21 . . 13 6 Average Temperature 9 | . 9 . . 9 6 Received Heat Transfer 226 | . 84 90 . 52 . Siege Activations . | . . . . . . Robots Corrupted . | . . . . . . Combat Hostiles . | . . . . . . Parts Fried . | . . . . . . Impact Corruptions . | . . . . . . Robots Melted . | . . . . . . Combat Hostiles . | . . . . . . Parts Melted 3 | . . . . 2 1 Heat Transferred 2290 | . . . . 1360 930 Parts Sabotaged . | . . . . . . Parts Stolen . | . . . . . . Parts Stripped . | . . . . . . Power Chain Reactions . | . . . . . . Missiles Intercepted . | . . . . . . Alert | -11 -10 -10 -10 -9 -8 ------- Run | Scr Mat Min Exi Min Mat Peak Influence 271 | . 55 71 . 45 271 Initial 21 | . . 21 . . 17 Average 49 | . 15 52 . 35 101 Maximum Alert Level 1 | . . . . . 1 Low Security (%) 97 | 100 100 100 . 100 86 Level 1 2 | . . . . . 13 Level 2 . | . . . . . . Level 3 . | . . . . . . Level 4 . | . . . . . . Level 5 . | . . . . . . High Security . | . . . . . . Max Security . | . . . . . . Squads Dispatched 1 | . . . . . 1 Investigation 1 | . . . . . 1 Extermination . | . . . . . . Reinforcement . | . . . . . . Assault . | . . . . . . Garrison . | . . . . . . Intercept . | . . . . . . Construction Impeded . | . . . . . . Haulers Reinforced . | . . . . . . Stealth | -11 -10 -10 -10 -9 -8 --------- Run | Scr Mat Min Exi Min Mat Distress Signals 1 | . . . . . 1 Communications Jammed . | . . . . . . Distress Signals . | . . . . . . Times Spotted 21 | . 2 2 . 11 6 Peak Tracking Total 6 | . 2 2 . 6 3 Tactical Retreats 1 | . . . . . 1 Traps | -11 -10 -10 -10 -9 -8 ------- Run | Scr Mat Min Exi Min Mat Traps Triggered 1 | . . . . . 1 Indirectly . | . . . . . . Trap Hack Attempts . | . . . . . . Triggered . | . . . . . . Disarmed . | . . . . . . Reprogrammed . | . . . . . . Reused . | . . . . . . Traps Extracted . | . . . . . . Installed . | . . . . . . Triggered . | . . . . . . Machines | -11 -10 -10 -10 -9 -8 ---------- Run | Scr Mat Min Exi Min Mat Machines Disabled 4 | . . . . 1 3 Max in Single Turn 1 | . . . . 1 1 Machines Sabotaged . | . . . . . . Garrisons Compromised . | . . . . . . Overloaded Fab Kills . | . . . . . . Fab Network Shutdowns . | . . . . . . Hacking | -11 -10 -10 -10 -9 -8 --------- Run | Scr Mat Min Exi Min Mat Machines Accessed 2 | . . . . . 2 Terminals 2 | . . . . . 2 Fabricators . | . . . . . . Repair Stations . | . . . . . . Recycling Units . | . . . . . . Scanalyzers . | . . . . . . Garrison Access . | . . . . . . Total Hacks 5 | . . . . . 5 Successful 3 | . . . . . 3 Failed 2 | . . . . . 2 Catastrophic . | . . . . . . Database Lockouts . | . . . . . . Manual 1 | . . . 1 . . Terminals 5 | . . . . . 5 Fabricators . | . . . . . . Repair Stations . | . . . . . . Recycling Units . | . . . . . . Scanalyzers . | . . . . . . Garrison Access . | . . . . . . Terminal Hacks 3 | . . . . . 3 Record 3 | . . . . . 3 Fabricator Hacks . | . . . . . . Repair Station Hacks . | . . . . . . Recycling Unit Hacks . | . . . . . . Scanalyzer . | . . . . . . Garrison Access Hacks . | . . . . . . Unauthorized Hacks . | . . . . . . Terminals . | . . . . . . Fabricators . | . . . . . . Repair Stations . | . . . . . . Recycling Units . | . . . . . . Scanalyzers . | . . . . . . Garrison Access . | . . . . . . Data Cores Recovered . | . . . . . . Used . | . . . . . . Hacking Detections 1 | . . . . . 1 Full Trace Events 1 | . . . . . 1 Feedback Events . | . . . . . . Feedback Blocked . | . . . . . . Robot Schematics Acquired . | . . . . . . Robots Built . | . . . . . . Matter . | . . . . . . Time . | . . . . . . Total Robot Build Rating . | . . . . . . Part Schematics Acquired . | . . . . . . Parts Built . | . . . . . . Matter . | . . . . . . Time . | . . . . . . Total Part Build Rating . | . . . . . . Parts Repaired . | . . . . . . Time . | . . . . . . Parts Recycled . | . . . . . . Recycled Matter . | . . . . . . Retrieved Matter . | . . . . . . Retrieved Components . | . . . . . . Parts Scanalyzed . | . . . . . . Part Schematics Acquired . | . . . . . . Parts Damaged . | . . . . . . Bothacking | -11 -10 -10 -10 -9 -8 ------------ Run | Scr Mat Min Exi Min Mat Used RIF Installer . | . . . . . . Robots Hacked . | . . . . . . Non-combat . | . . . . . . Combat . | . . . . . . Robot Hacks Applied . | . . . . . . Relay Couplers Released . | . . . . . . Robots Rewired . | . . . . . . Allies Hacked . | . . . . . . Hacks Repelled . | . . . . . . Allies | -11 -10 -10 -10 -9 -8 -------- Run | Scr Mat Min Exi Min Mat Total Allies 1 | . . 1 . . . Largest Group 1 | . . 1 1 . . Highest-Rated Group 31 | . . 31 31 . . Highest-Rated Ally 31 | . . 31 31 . . Total Orders . | . . . . . . Ally Attacks . | . . . . . . Total Damage . | . . . . . . Kills . | . . . . . . Allies Corrupted . | . . . . . . Allies Melted . | . . . . . . Intel | -11 -10 -10 -10 -9 -8 ------- Run | Scr Mat Min Exi Min Mat Robot Analysis Total . | . . . . . . Derelict Logs Recovered 1 | . . 1 . . . Drone Launches . | . . . . . . Drone Recoveries . | . . . . . . Exploration | -11 -10 -10 -10 -9 -8 ------------- Run | Scr Mat Min Exi Min Mat Turns Passed 2143 | 122 169 410 903 271 268 Spaces Moved 1201 | 77 85 226 559 133 121 Core 7 | 7 . . . . . Treads 1194 | 70 85 226 559 133 121 Legs . | . . . . . . Wheels . | . . . . . . Hover . | . . . . . . Flight . | . . . . . . Fastest Speed 50 | 50 160 160 160 160 152 Average Speed 160 | 150 160 160 160 170 159 Slowest Speed 180 | 160 160 160 160 180 180 Overloaded Moves . | . . . . . . Propulsion Burnouts . | . . . . . . Robots Hopped . | . . . . . . Cave-ins Triggered . | . . . . . . Exploration Rate (%) 34 | 4 23 35 90 40 13 Regions Visited 5 Branch Regions 3 Pre-discovered Areas . | . . . . . . Known Exits Taken 1 | . . 1 . . . Unknown Exits Taken 4 | 1 1 . 1 1 . Scrap Searched 1 | . . 1 . . . Spaces Dug . | . . . . . . Terrain Destroyed 174 | . . . . 104 70 Melee . | . . . . . . Projectile 7 | . . . . 4 3 AOE 167 | . . . . 100 67 Terrain Rammed . | . . . . . . Walls Destroyed . | . . . . . . Machines Disabled . | . . . . . . Actions | -11 -10 -10 -10 -9 -8 --------- Run | Scr Mat Min Exi Min Mat Total 1314 | 81 100 253 568 148 164 Wait 50 | . 5 14 . 6 25 Move 1196 | 76 84 225 558 132 121 Hop . | . . . . . . Pick Up . | . . . . . . Fast Attach 17 | 5 1 1 5 . 5 Attach . | . . . . . . Detach . | . . . . . . Swap 1 | . . . . . 1 Drop 8 | . . 1 5 . 2 Fire 42 | . 10 12 . 10 10 Melee . | . . . . . . Ram . | . . . . . . Kick . | . . . . . . Crush . | . . . . . . Escape Stasis . | . . . . . . Rewire . | . . . . . . Trap . | . . . . . . Miscellaneous . | . . . . . . Route ------- -11/Scrapyard -10/Materials -10/Mines -10/Exiles (discovered 2 exits: [*Min x2]) -9/Mines -8/Materials History --------- Turn | Location | Event 2 | -11/Scrapyard | Discovered new exit (range 16) 123 | -11/Scrapyard | Entered Materials 278 | -10/Materials | Discovered new exit (range 8) 292 | -10/Materials | Entered Mines 304 | -10/Mines | Build established: Mutant 308 | -10/Mines | Identified exit to Exiles 322 | -10/Mines | Met a Derelict bent on vengeance 663 | -10/Mines | Received a Mining Laser from a helpful Derelict 694 | -10/Mines | Deemed a non-threat by the Exiles lab entrance 702 | -10/Mines | Entered Exiles 702 | -10/Exiles | Accompanied by 1 ally 725 | -10/Exiles | Discovered new exit (range 15) 766 | -10/Exiles | Met 8R-AWN 790 | -10/Exiles | Met EX-HEX 854 | -10/Exiles | Met EX-DEC 966 | -10/Exiles | Visited The Gauntlet 1240 | -10/Exiles | Met EX-BIN 1269 | -10/Exiles | Aligned with FarCom system 1270 | -10/Exiles | Given EX-Vault access code 1322 | -10/Exiles | Opened EX-Vault 1329 | -10/Exiles | Found Prototype Storage 1329 | -10/Exiles | Identified Lightpack 2.0 1333 | -10/Exiles | Found Prototype Energy Gun 1333 | -10/Exiles | Identified AWS/Thermal 1340 | -10/Exiles | Found Prototype Energy Cannon 1340 | -10/Exiles | Identified YOLO Cannon 1441 | -10/Exiles | Warned to stay clear of 0b10 Research branches 1589 | -10/Exiles | Discovered new exit (range 12) 1605 | -10/Exiles | Left Exiles lab with YOLO Cannon 1605 | -10/Exiles | Entered Mines 1606 | -9/Mines | Assembled infested the area 1611 | -9/Mines | Assisted by a Guerilla fighting off Assembled 1867 | -9/Mines | Discovered new exit (range 6) 1876 | -9/Mines | Entered Materials 1876 | -8/Materials | Evolved 4 slots: Utility x4 2141 | -8/Materials | Core integrity fell below 50% 2144 | -8/Materials | Self-destructed Last Messages --------------- 02126_ U-05 Engineer lays Concrete. 02130_ K-01 Serf collects debris. 02130_ U-05 Engineer lays Concrete. 02133_ Acquired 10 matter. 02133_ K-01 Serf collects debris. 02134_ U-05 Engineer lays Concrete. 02136_ K-01 Serf collects debris. 02137_ U-05 Engineer lays Concrete. 02137_ K-01 Serf collects debris. 02138_ U-05 Engineer lays Concrete. 02139_ Acquired Lrn. Sensor Array. 02140_ U-05 Engineer lays Concrete. 02140_ YOLO Cannon suddenly explodes. 02140_ Imp. Ion Engine destroyed. 02140_ System Shield destroyed. 02140_ Imp. Heat Sink destroyed. 02140_ Core damaged (-264). 02140_ Destroyed Welding Torch. 02140_ Destroyed Structural Scanner. 02140_ K-01 Serf destroyed. Map ----- +----------------------------------------------------+ | ????????????????????????????????????????????? | | ????????????????????????????????????????????? | | ????????????????????????????????????????????? | | ????????????????????????????????????????????? | | ????????????????????????????????????????????? | | ????????????????????????????????????????????? | | ????????????????????????????????????????????? | | ????????????????????????????????????????????? | | ????????????????????????????????????????????? | | ????????????????????????????????????????????? | | ????????????????????????????????????????????? | | ????????????????????????????????????????????? | | ????????????????????????????????????????????? | | ????????????????????????????????????????????? | | ???????????????????????????? #?????????????? | | ???????????????????????????? #?????????????? | | ??????????????????????????? #?????????????? | | ??????????#######+######### ####??????????? | | ??????????# # ; ??????????? | | ??????????# ; ; ??????????? | | ??????????# ; ????????????? | | ??????????# ; #?????????????? | | ??????????? * #?????????????? | | ?????????????? =%= w #?????????????? | | ??????????#?##+##;;%! #?????????????? | | ????????? #?# + *@ #?????????????? | | ????????? ### # ! #?????????????? | | ????????? #""! # = u* #???g?????????? | | ????????? # + =%* ;+#####??????????? | | ????????? # != #??????????? | | ???###+##" # # """ #??????????? | | ??## #### # "" # """ +??????????? | | ??#" + "" # """??????????????? | | ??#" % # #? ??????????????? | | ??## ! # #??""" ?????????????? | | ??## ##### "# #??""" ?????????????? | | ??### #"#### ##### ####???????????????????? | | ??### "#####+#???###??????????????????????? | | ???## # #????????????????????????????? | | ????# + !#????????????????????????????? | | ????# # #????????????????????????????? | | ????# # " " #????????????????????????????? | | ????# # "T" #????????????????????????????? | | ????# # """ #????????????????????????????? | | ????# ########????????????????????????????? | | ????# #???????????????????????????????????? | | ????# #???????????????????????????????????? | | ????# #???????????????????????????????????? | | ????# #???????????????????????????????????? | | ????# ########????????????????????????????? | +----------------------------------------------------+ Best States ------------- Heat Dissipation 45 Energy Generation 14 Energy Capacity 665 Matter Stores 300 Matter Capacity 300 Sight Range 16 Robot Scan Range 20 Terrain Scan Density 10 Jamming Range 8 Evasion (%) 40 Recoil Reduction 2 Defensive Hacking 10 Item Schematics ----------------- None Robot Schematics ------------------ None Fabricated ------------ Nothing Alien Tech Used ----------------- None Achievements -------------- None Challenges ------------ None Game ------ Seed NeutrinoSuspensionCarapace Manual? 0 Play Time 00:19:13 Cumulative 53.0 hours Start 2021.05.06 @ 13:30:01 End 2021.05.06 @ 14:09:47 Sessions 1 Manual Loads 0 Difficulty Rogue Special Mode None Game No. 115 Rogue 115 Adventurer 0 Explorer 0 Win Type - Total 0 Types 0/0/0/0/0/0/0/0/0 Lore% 24 Gallery% 30 Achievement% 26 Wizard Run 0 Options --------- ASCII 0 Keyboard 0 Movement Numpad Keybinds 0 Fullscreen 1 Font 12/Smallcaps Map View 83x54 Tactical HUD 1 Map Filters NONE Filters NONE Steam 1 RUN: 1d34d9d3-f7a3-40dd-aa0b-04673c28f807